bitfinex/quotes_SOLUSD_20241121
["timestamp","ask_amount","ask_price","bid_price","bid_amount"]
[1732204321787,30.04813666,248.47,248.35,30.04813666]
[1732204321952,30.04813666,248.43,248.23,13.0332]
[1732204322270,30.04813666,248.39,248.27,30.04813666]
[1732204322473,30.04813666,248.52,248.23,30.04813666]
[1732204322474,30.04813666,248.35,248.23,30.04813666]
[1732204322953,30.04813666,248.33,248.23,30.04813666]
[1732204323160,30.04813666,248.38,248.29,30.04813666]
[1732204323359,13.3284,248.48,248.16,30.54813666]
[1732204323360,30.04813666,248.41,248.31,30.04813666]
[1732204323561,30.04813666,248.37,248.25,30.04813666]
[1732204323878,4.0247,248.46,248.16,30.04813666]
[1732204323879,30.04813666,248.39,248.29,30.04813666]
[1732204324459,30.04813666,248.43,248.33,30.04813666]
[1732204324761,30.04813666,248.52,248.41,30.04813666]
[1732204324967,30.04813666,248.5,248.39,30.04813666]
[1732204325284,4.0231,248.56,248.29,20.0]
[1732204325285,30.04813666,248.54,248.43,30.04813666]
[1732204325453,4.0233,248.56,248.38,30.04813666]
[1732204325650,4.0233,248.56,248.29,20.5]
[1732204325853,10.0563,248.59,248.36,0.5]
[1732204326057,4.0222,248.62,248.35,20.0]
[1732204326270,14.0777,248.62,248.35,20.0]
[1732204326577,30.04813666,248.53,248.42,30.04813666]
[1732204326780,30.04813666,248.57,248.46,30.04813666]
[1732204326978,30.04813666,248.57,248.48,30.04813666]
[1732204327189,30.04813666,248.53,248.42,30.04813666]
[1732204327483,30.04813666,248.6,248.5,23.776884]
[1732204327684,30.04813666,248.55,248.44,50.04813666]
[1732204327860,30.04813666,248.57,248.46,30.04813666]
[1732204328060,30.04813666,248.55,248.44,30.04813666]
[1732204328355,30.04813666,248.51,248.41,23.776884]
[1732204328556,30.04813666,248.55,248.46,30.04813666]
[1732204328756,30.04813666,248.55,248.44,30.04813666]
[1732204328983,30.04813666,248.53,248.43,23.776884]
[1732204329365,41.1807,248.63,248.43,23.776884]
[1732204329366,30.04813666,248.55,248.46,30.04813666]
[1732204329679,30.04813666,248.57,248.47,23.776884]
[1732204329878,30.04813666,248.53,248.42,30.04813666]
[1732204330065,30.04813666,248.55,248.45,23.776884]
[1732204330270,30.04813666,248.55,248.44,30.04813666]
[1732204330880,30.04813666,248.51,248.4,30.04813666]
[1732204331085,30.04813666,248.45,248.34,30.04813666]
[1732204331563,30.04813666,248.49,248.38,30.04813666]
[1732204331881,30.04813666,248.51,248.4,30.04813666]
[1732204332374,30.04813666,248.47,248.36,30.04813666]
[1732204332681,30.04813666,248.38,248.26,30.04813666]
[1732204332872,30.04813666,248.36,248.26,30.04813666]
[1732204333082,34.07493666,248.34,248.22,30.04813666]
[1732204333257,30.04813666,248.31,248.22,30.04813666]
[1732204333461,30.04813666,248.4,248.22,30.04813666]
[1732204333462,30.04813666,248.33,248.22,30.04813666]
[1732204333676,30.04813666,248.31,248.22,30.04813666]
[1732204333994,30.04813666,248.33,248.22,30.04813666]
[1732204334282,33.8306,248.44,248.16,30.04813666]
[1732204334283,34.07443666,248.37,248.16,30.04813666]
[1732204334493,30.04813666,248.31,248.2,30.04813666]
[1732204334660,30.04813666,248.31,248.22,30.04813666]
[1732204334864,30.04813666,248.31,248.2,30.04813666]
[1732204335063,30.04813666,248.4,248.22,30.04813666]
[1732204335064,30.04813666,248.33,248.22,30.04813666]
[1732204335288,30.04813666,248.31,248.2,30.04813666]
[1732204335665,30.04813666,248.25,248.16,30.04813666]
[1732204335886,4.0269,248.33,248.12,30.04813666]
[1732204335887,30.04813666,248.23,248.12,30.04813666]
[1732204336068,30.04813666,248.19,248.08,30.04813666]
[1732204336462,30.04813666,248.23,248.12,30.04813666]
[1732204336660,30.04813666,248.31,248.2,30.04813666]
[1732204336863,30.04813666,248.29,248.18,30.04813666]
[1732204337167,30.04813666,248.31,248.21,30.04813666]
[1732204337382,30.04813666,248.33,248.1,1.0]
[1732204337584,4.0264,248.36,248.07,0.5]
[1732204337772,4.0264,248.36,248.08,23.776884]
[1732204338079,4.0264,248.36,248.14,23.776884]
[1732204338394,24.0252,248.43,248.18,23.776884]
[1732204338568,30.04813666,248.35,248.26,23.776884]
[1732204338758,30.04813666,248.35,248.25,30.04813666]
[1732204338959,30.04813666,248.37,248.27,30.04813666]
[1732204339187,4.0252,248.43,248.29,30.04813666]
[1732204339188,30.04813666,248.39,248.29,30.04813666]
[1732204339487,30.04813666,248.45,248.34,23.776884]
[1732204339670,12.7861,248.56,248.39,30.04813666]
[1732204339671,30.04813666,248.49,248.39,30.04813666]
[1732204340394,30.04813666,248.53,248.43,30.04813666]
[1732204340559,30.04813666,248.53,248.42,23.776884]
[1732204340560,30.04813666,248.5,248.42,23.776884]
[1732204340891,30.04813666,248.48,248.39,30.04813666]
[1732204341187,30.04813666,248.46,248.37,30.04813666]
[1732204341394,4.0245,248.48,248.3,30.04813666]
[1732204341686,30.04813666,248.33,248.22,30.04813666]
[1732204341877,30.04813666,248.31,248.2,30.04813666]
[1732204342065,1.0,248.34,248.13,2.85644273]
[1732204342265,0.5,248.34,248.05,30.3728]
[1732204342490,0.5,248.34,248.15,30.04813666]
[1732204342491,30.04813666,248.25,248.15,30.04813666]
[1732204342691,0.5,248.34,248.13,30.04813666]
[1732204342692,30.04813666,248.23,248.13,30.04813666]
[1732204342876,30.04813666,248.19,248.09,30.04813666]
[1732204343595,30.04813666,248.21,248.11,30.04813666]
[1732204344085,30.04813666,248.21,248.09,30.04813666]
[1732204344300,0.5,248.14,247.78,0.5]
[1732204344505,30.04813666,247.96,247.85,30.04813666]
[1732204344792,30.04813666,247.98,247.8,0.5]
[1732204344995,0.5,248.18,247.93,30.04813666]
[1732204345171,20.0,248.19,247.82,13.6966]
[1732204345172,30.04813666,248.01,247.89,30.04813666]
[1732204345494,30.04813666,248.01,247.82,13.1966]
[1732204345495,30.04813666,248.05,247.93,30.04813666]
[1732204345669,30.04813666,248.05,247.95,30.04813666]
[1732204346190,4.0298,248.15,247.82,13.1966]
[1732204346191,30.04813666,248.03,247.92,30.04813666]
[1732204346399,30.04813666,248.16,247.9,30.04813666]
[1732204346400,30.04813666,248.01,247.9,30.04813666]
[1732204346694,30.04813666,248.05,247.96,30.04813666]
[1732204346875,30.04813666,248.05,247.82,13.1966]
[1732204346876,30.04813666,248.09,247.98,30.04813666]
[1732204347074,30.04813666,248.07,247.96,30.04813666]
[1732204347280,30.04813666,248.09,247.98,30.04813666]
[1732204347487,30.04813666,248.09,247.99,23.776884]
[1732204347678,30.04813666,248.16,247.99,23.776884]
[1732204347883,30.04813666,248.01,247.84,30.04813666]
[1732204348069,30.04813666,247.91,247.82,30.04813666]
[1732204348272,30.04813666,247.91,247.71,12.4388]
[1732204348273,30.04813666,247.89,247.78,30.04813666]
[1732204348467,4.0327,247.97,247.71,12.4388]
[1732204348673,30.04813666,247.9,247.8,30.04813666]
[1732204348874,30.04813666,247.92,247.82,30.04813666]
[1732204349189,30.04813666,247.89,247.79,30.04813666]
[1732204349393,30.04813666,247.93,247.82,30.04813666]
[1732204349572,30.04813666,247.97,247.88,30.04813666]
[1732204349772,30.04813666,247.97,247.87,30.04813666]
[1732204349973,30.04813666,247.95,247.86,20.0]
[1732204350372,30.04813666,247.94,247.85,30.04813666]
[1732204350565,30.04813666,247.96,247.86,20.0]
[1732204350771,30.04813666,247.94,247.86,20.0]
[1732204350969,30.04813666,247.88,247.79,30.04813666]
[1732204351279,30.04813666,247.84,247.73,30.04813666]
[1732204352172,30.04813666,247.82,247.71,30.04813666]
[1732204352493,4.0339,247.9,247.69,30.04813666]
[1732204352672,30.04813666,247.76,247.67,30.04813666]
[1732204353294,4.0339,247.9,247.62,2.99206281]
[1732204353295,30.04813666,247.69,247.62,2.99206281]
[1732204353483,30.04813666,247.66,247.56,30.04813666]
[1732204353885,30.04813666,247.7,247.6,30.04813666]
[1732204354185,30.04813666,247.81,247.6,0.5]
[1732204354494,30.04813666,247.79,247.7,30.04813666]
[1732204354696,4.0339,247.9,247.58,0.5]
[1732204354873,21.0,247.89,247.56,30.04813666]
[1732204355073,20.5,247.89,247.56,30.54813666]
[1732204355269,20.0,247.89,247.6,0.5]
[1732204355472,4.0339,247.9,247.6,0.5]
[1732204355693,4.0339,247.9,247.51,33.1693]
[1732204355694,30.04813666,247.7,247.61,30.04813666]
[1732204356483,30.04813666,247.77,247.68,30.04813666]
[1732204356681,30.04813666,247.8,247.71,30.04813666]
[1732204356882,30.04813666,247.78,247.67,30.04813666]
[1732204357082,30.04813666,247.73,247.64,30.04813666]
[1732204357293,30.04813666,247.71,247.62,30.04813666]
[1732204357683,30.04813666,247.8,247.6,30.04813666]
[1732204357684,30.04813666,247.68,247.6,30.04813666]
[1732204357880,30.04813666,247.68,247.58,30.04813666]
[1732204358397,30.04813666,247.8,247.44,30.54813666]
[1732204358398,30.04813666,247.7,247.6,30.04813666]
[1732204358592,30.04813666,247.76,247.66,30.04813666]
[1732204359001,30.04813666,247.74,247.64,30.04813666]
[1732204359180,30.04813666,247.72,247.62,30.04813666]
[1732204359903,14.1197,247.88,247.67,30.04813666]
[1732204359904,30.04813666,247.77,247.67,30.04813666]
[1732204360585,30.04813666,247.77,247.68,20.0]
[1732204360793,30.04813666,247.79,247.68,20.0]
[1732204361104,30.04813666,247.89,247.77,30.04813666]
[1732204361297,30.04813666,247.89,247.74,20.0]
[1732204361298,0.5,247.94,247.84,30.04813666]
[1732204362015,30.04813666,247.91,247.81,30.04813666]
[1732204362177,30.54813666,247.94,247.84,30.04813666]
[1732204362381,30.54813666,247.92,247.83,30.04813666]
[1732204362980,30.04813666,247.9,247.81,20.0]
[1732204363180,30.54813666,247.86,247.76,30.04813666]
[1732204363378,30.54813666,247.86,247.68,30.04813666]
[1732204363379,30.04813666,247.83,247.73,30.04813666]
[1732204363702,0.5,247.83,247.77,30.04813666]
[1732204363882,30.04813666,247.78,247.69,30.04813666]
[1732204364080,30.04813666,247.78,247.56,30.04813666]
[1732204364081,30.04813666,247.78,247.67,30.04813666]
[1732204364293,0.5,247.8,247.71,30.04813666]
[1732204364476,0.5,247.91,247.68,30.04813666]
[1732204364676,0.5,247.91,247.78,30.04813666]
[1732204364677,0.5,247.9,247.78,30.04813666]
[1732204364876,30.04813666,247.87,247.78,30.04813666]
[1732204365076,30.54813666,247.87,247.77,20.0]
[1732204365582,0.5,247.91,247.84,30.04813666]
[1732204365799,0.5,247.91,247.82,30.04813666]
[1732204366010,30.04813666,247.96,247.86,20.0]
[1732204366186,30.04813666,248.0,247.9,20.0]
[1732204366377,30.04813666,247.98,247.9,20.0]
[1732204366591,0.5,248.03,247.9,20.0]
[1732204366592,30.04813666,248.0,247.9,20.0]
[1732204366783,30.04813666,247.95,247.75,12.2943]
[1732204366991,0.5,247.94,247.87,20.0]
[1732204367500,30.04813666,247.93,247.87,20.0]
[1732204367706,30.04813666,247.95,247.86,30.04813666]
[1732204367879,0.5,247.98,247.9,30.04813666]
[1732204368082,0.5,247.92,247.82,30.04813666]
[1732204368280,1.0,247.93,247.83,20.0]
[1732204368485,30.54813666,247.91,247.83,20.0]
[1732204369086,30.54813666,247.93,247.83,20.0]
[1732204369289,30.54813666,247.85,247.76,30.04813666]
[1732204369494,30.04813666,247.83,247.74,30.04813666]
[1732204370007,0.5,247.84,247.74,30.04813666]
[1732204370305,30.04813666,247.78,247.58,12.0484]
[1732204370512,30.04813666,247.78,247.67,30.04813666]
[1732204370686,0.5,247.78,247.71,30.04813666]
[1732204370883,0.5,247.76,247.67,30.04813666]
[1732204371088,31.04813666,247.73,247.63,30.04813666]
[1732204371701,0.5,247.7,247.59,30.04813666]
[1732204372109,4.0359,247.78,247.59,30.04813666]
[1732204372110,1.0,247.67,247.59,30.04813666]
[1732204372303,0.5,247.69,247.61,30.04813666]
[1732204372499,30.04813666,247.8,247.64,30.04813666]
[1732204372500,0.5,247.73,247.64,30.04813666]
[1732204372700,30.04813666,247.74,247.64,30.04813666]
[1732204372900,0.5,247.72,247.64,30.04813666]
[1732204373113,30.04813666,247.74,247.64,30.04813666]
[1732204373287,0.5,247.71,247.62,30.04813666]
[1732204373607,0.5,247.71,247.64,30.04813666]
[1732204373913,31.04813666,247.74,247.64,30.04813666]
[1732204374117,0.5,247.7,247.62,30.04813666]
[1732204374619,0.5,247.69,247.58,30.04813666]
[1732204374795,4.0363,247.75,247.58,30.04813666]
[1732204374796,31.04813666,247.68,247.58,30.04813666]
[1732204375921,0.5,247.66,247.58,30.04813666]
[1732204376093,0.5,247.66,247.56,30.04813666]
[1732204376294,0.5,247.66,247.58,30.04813666]
[1732204376513,1.0,247.63,247.56,30.04813666]
[1732204376702,1.0,247.63,247.53,30.04813666]
[1732204376898,0.5,247.59,247.51,30.04813666]
[1732204377099,0.5,247.6,247.51,30.04813666]
[1732204377291,30.54813666,247.6,247.49,30.04813666]
[1732204377492,0.5,247.6,247.51,30.04813666]
[1732204377694,34.08563666,247.68,247.44,33.04802177]
[1732204377695,30.04813666,247.66,247.57,30.04813666]
[1732204377893,30.54813666,247.68,247.59,30.04813666]
[1732204378211,0.5,247.67,247.6,20.0]
[1732204378594,30.232,247.79,247.44,30.04813666]
[1732204378595,0.5,247.65,247.58,20.0]
[1732204378807,30.54813666,247.66,247.58,20.0]
[1732204379308,30.54813666,247.62,247.53,30.04813666]
[1732204379503,0.5,247.6,247.53,30.04813666]
[1732204379932,0.5,247.6,247.05,6.1554101]
[1732204379933,30.54813666,247.57,247.46,30.04813666]
[1732204380131,0.5,247.56,247.46,30.04813666]
[1732204380519,30.04813666,247.61,247.53,30.04813666]
[1732204380717,12.8626,247.71,247.6,30.04813666]
[1732204380936,0.5,247.68,247.61,30.04813666]
[1732204381123,0.5,247.73,247.65,30.04813666]
[1732204381326,30.04813666,247.76,247.68,20.0]
[1732204381638,30.04813666,247.83,247.73,30.04813666]
[1732204381842,0.5,247.76,247.74,20.0]
[1732204382050,13.1552,247.89,247.56,30.04813666]
[1732204382051,0.5,247.87,247.68,0.60540664]
[1732204382215,30.04813666,247.81,247.59,2.92901084]
[1732204382421,30.04813666,247.81,247.57,20.0]
[1732204382625,0.5,247.79,247.71,20.0]
[1732204382925,30.04813666,247.81,247.72,30.04813666]
[1732204383130,0.5,247.84,247.77,20.0]
[1732204383337,30.54813666,247.84,247.77,20.0]
[1732204383565,0.5,247.8,247.77,20.0]
[1732204383842,31.04813666,247.8,247.71,20.0]
[1732204384024,0.5,247.81,247.74,30.04813666]
[1732204384228,30.04813666,247.84,247.75,20.0]
[1732204384229,0.5,247.83,247.75,20.0]
[1732204384452,0.5,247.8,247.75,20.0]
[1732204384627,0.5,247.77,247.67,30.04813666]
[1732204384941,0.5,247.77,247.68,20.0]
[1732204384942,1.0,247.77,247.68,20.0]
[1732204385152,0.5,247.77,247.7,20.0]
[1732204385336,1.0,247.77,247.67,30.04813666]
[1732204385522,30.04813666,247.78,247.67,30.04813666]
[1732204385723,30.54813666,247.82,247.71,30.04813666]
[1732204385938,0.5,247.8,247.71,30.04813666]
[1732204386157,0.5,247.84,247.75,30.04813666]
[1732204386447,0.5,247.89,247.68,30.04813666]
[1732204386448,0.5,247.89,247.82,30.04813666]
[1732204386627,0.5,247.95,247.87,30.04813666]
[1732204386950,0.5,247.95,247.8,30.04813666]
[1732204386951,0.5,247.95,247.86,20.0]
[1732204387323,0.5,247.95,247.85,30.04813666]
[1732204387324,0.5,247.88,247.82,30.04813666]
[1732204387547,0.5,247.89,247.83,20.0]
[1732204387727,0.5,247.89,247.85,20.0]
[1732204388042,30.04813666,247.94,247.85,20.0]
[1732204388229,0.5,247.97,247.89,20.0]
[1732204388431,0.5,247.96,247.88,30.04813666]
[1732204388638,0.5,247.93,247.87,20.0]
[1732204389428,0.5,247.97,247.88,30.04813666]
[1732204389640,1.0,247.96,247.9,30.04813666]
[1732204389843,0.5,247.94,247.86,30.04813666]
[1732204390028,0.5,248.01,247.83,43.776884]
[1732204390229,0.5,248.0,247.84,0.60500434]
[1732204390447,0.5,247.95,247.87,23.776884]
[1732204390628,0.5,247.95,247.88,20.0]
[1732204390822,1.0,248.04,247.92,20.0]
[1732204391076,1.0,248.1,247.96,20.0]
[1732204391256,1.0,248.1,247.95,23.776884]
[1732204391257,0.5,248.09,248.01,23.776884]
[1732204391547,0.5,248.1,248.03,23.776884]
[1732204391731,0.5,248.1,247.92,30.04813666]
[1732204391732,0.5,248.05,247.98,30.04813666]
[1732204391938,0.5,248.06,247.99,43.776884]
[1732204392134,0.5,248.04,247.99,43.776884]
[1732204392329,0.5,248.02,247.99,43.776884]
[1732204392555,0.5,248.02,247.95,43.776884]
[1732204392847,4.0305,248.11,247.84,33.71335866]
[1732204392848,0.5,248.09,248.01,20.0]
[1732204393027,0.5,248.07,248.01,20.0]
[1732204393233,0.5,248.13,248.06,30.04813666]
[1732204393551,12.7027,248.16,248.08,30.04813666]
[1732204393727,0.5,248.17,248.11,30.04813666]
[1732204393728,0.5,248.14,248.11,30.04813666]
[1732204393927,0.5,248.14,248.1,20.0]
[1732204394128,0.5,248.12,248.08,43.776884]
[1732204394349,0.5,248.0,247.69,6.1554101]
[1732204394544,0.5,247.98,247.91,30.04813666]
[1732204394754,1.0,247.96,247.89,30.04813666]
[1732204394936,12.4911,248.03,247.87,30.04813666]
[1732204394937,0.5,247.92,247.87,30.04813666]
[1732204395131,0.5,247.92,247.8,30.04813666]
[1732204395132,0.5,247.94,247.89,30.04813666]
[1732204395334,1.0,247.94,247.89,30.04813666]
[1732204395653,0.5,247.92,247.87,30.04813666]
[1732204396355,30.54813666,247.92,247.66,16.116686]
[1732204396650,0.5,247.88,247.82,30.04813666]
[1732204396853,0.5,247.91,247.82,30.04813666]
[1732204397039,1.0,247.95,247.88,30.04813666]
[1732204397351,0.5,247.99,247.8,30.04813666]
[1732204397559,0.5,247.99,247.93,30.04813666]
[1732204397853,1.0,247.99,247.91,30.04813666]
[1732204398239,0.5,247.95,247.94,20.0]
[1732204398439,0.5,247.87,247.57,6.1554101]
[1732204398641,0.5,247.85,247.79,30.04813666]
[1732204398955,0.5,247.81,247.75,30.04813666]
[1732204399159,0.5,247.83,247.77,30.04813666]
[1732204399449,0.5,247.87,247.79,30.04813666]
[1732204399632,0.5,247.87,247.77,30.04813666]
[1732204399633,0.5,247.82,247.77,30.04813666]
[1732204399962,1.0,247.69,247.61,30.04813666]
[1732204400249,30.54813666,247.69,247.41,16.132402]
[1732204400558,30.54813666,247.69,247.37,19.3098101]
[1732204400559,0.5,247.68,247.59,30.04813666]
[1732204401058,0.5,247.66,247.59,30.04813666]
[1732204401253,0.5,247.66,247.6,20.0]
[1732204401635,0.5,247.71,247.65,30.04813666]
[1732204401850,0.5,247.71,247.67,30.04813666]
[1732204402055,0.5,247.71,247.68,20.0]
[1732204402237,12.9826,247.79,247.7,20.0]
[1732204402438,12.4826,247.79,247.73,20.0]
[1732204402640,12.4826,247.79,247.75,30.04813666]
[1732204402953,0.5,247.83,247.77,30.04813666]
[1732204403160,13.0711,247.87,247.83,23.776884]
[1732204403351,13.0711,247.87,247.81,20.0]
[1732204403557,1.0,247.88,247.82,53.82502066]
[1732204403752,4.0326,247.98,247.82,53.82502066]
[1732204403753,0.5,247.97,247.89,23.776884]
[1732204403963,0.5,247.99,247.96,20.0]
[1732204404262,0.5,248.1,248.01,23.776884]
[1732204404435,0.5,248.11,248.04,20.0]
[1732204404640,31.4219,248.17,247.92,30.04813666]
[1732204404641,0.5,248.15,248.08,20.0]
[1732204404841,0.5,248.16,248.12,20.0]
[1732204405037,0.5,248.21,248.16,43.776884]
[1732204405239,0.5,248.25,248.19,30.04813666]
[1732204405666,0.5,248.25,248.2,43.776884]
[1732204405965,1.0,248.25,248.2,43.776884]
[1732204406260,0.5,248.26,248.2,23.776884]
[1732204406443,1.0,248.28,248.22,23.776884]
[1732204406640,0.5,248.26,248.22,23.776884]
[1732204406838,0.5,248.28,248.22,23.776884]
[1732204407052,0.5,248.28,248.24,23.776884]
[1732204407259,0.5,248.28,248.25,30.04813666]
[1732204407560,0.5,248.28,248.26,23.776884]
[1732204407765,0.5,248.33,248.28,23.776884]
[1732204407936,0.5,248.29,248.28,23.776884]
[1732204408139,0.5,248.2,248.16,30.04813666]
[1732204408371,0.5,248.17,248.15,20.0]
[1732204408538,30.04813666,248.28,248.08,30.04813666]
[1732204408539,0.5,248.13,248.08,30.04813666]
[1732204408858,0.5,248.13,247.92,30.04813666]
[1732204408859,0.5,248.13,248.06,30.04813666]
[1732204409035,0.5,248.19,247.95,2.86612033]
[1732204409239,0.5,248.22,247.96,0.60434808]
[1732204409439,0.5,248.21,247.96,0.60434808]
[1732204409662,0.5,248.22,247.96,0.60434808]
[1732204409835,0.5,248.19,248.16,30.04813666]
[1732204410039,0.5,248.21,248.04,30.04813666]
[1732204410241,0.5,248.14,248.11,20.0]
[1732204410453,30.04813666,248.2,248.11,20.0]
[1732204410643,0.5,248.21,248.12,30.04813666]
[1732204410841,0.5,248.28,248.14,30.04813666]
[1732204411082,30.04813666,248.3,248.21,30.04813666]
[1732204411248,0.5,248.29,248.23,30.04813666]
[1732204411441,0.5,248.31,248.25,30.04813666]
[1732204411658,1.0,248.33,248.27,30.04813666]
[1732204411861,0.5,248.42,248.32,20.0]
[1732204412066,0.5,248.38,248.34,30.04813666]
[1732204412262,0.5,248.42,248.36,30.04813666]
[1732204412465,0.5,248.36,248.32,30.04813666]
[1732204412770,0.5,248.34,248.29,30.04813666]
[1732204413061,12.8121,248.47,248.33,30.04813666]
[1732204413062,0.5,248.38,248.33,30.04813666]
[1732204413267,0.5,248.32,248.28,30.04813666]
[1732204413592,0.5,248.31,248.29,20.0]
[1732204413751,0.5,248.31,248.26,30.04813666]
[1732204413950,0.5,248.33,248.3,30.04813666]
[1732204414157,0.5,248.42,248.33,20.0]
[1732204414468,1.0,248.42,248.34,30.04813666]
[1732204415041,0.5,248.36,248.33,20.0]
[1732204415767,0.5,248.35,248.33,20.0]
[1732204416075,0.5,248.44,248.35,20.0]
[1732204416361,30.04813666,248.54,248.44,20.0]
[1732204416362,0.5,248.45,248.44,20.0]
[1732204416560,0.5,248.54,248.44,20.0]
[1732204416769,0.5,248.48,248.47,30.04813666]
[1732204417676,0.5,248.45,248.43,20.0]
[1732204417853,0.5,248.55,248.44,30.04813666]
[1732204418052,1.0,248.63,248.54,30.04813666]
[1732204418278,0.5,248.52,248.5,30.04813666]
[1732204418480,0.5,248.52,248.51,20.0]
[1732204418771,0.5,248.62,248.51,20.0]
[1732204418953,0.5,248.6,248.52,30.04813666]
[1732204419155,0.5,248.55,248.52,30.04813666]
[1732204419555,0.5,248.61,248.52,30.04813666]
[1732204419762,0.5,248.62,248.56,30.04813666]
[1732204419952,0.5,248.59,248.56,30.04813666]
[1732204420270,0.5,248.61,248.56,30.04813666]
[1732204420470,0.5,248.57,248.56,30.04813666]
[1732204420647,0.5,248.61,248.56,30.04813666]
[1732204420847,0.5,248.57,248.54,30.04813666]
[1732204421101,0.5,248.57,248.55,20.0]
[1732204421376,0.5,248.55,248.54,30.04813666]
[1732204422070,0.5,248.58,248.54,30.04813666]
[1732204422368,0.5,248.61,248.54,30.04813666]
[1732204422586,0.3746,248.7,248.6,30.04813666]
[1732204422877,0.3746,248.73,248.7,20.0]
[1732204423085,0.3746,248.75,248.71,30.04813666]
[1732204423380,0.3746,248.66,248.65,30.04813666]
[1732204423753,0.3746,248.64,248.53,20.60283271]
[1732204424854,0.3746,248.66,248.64,20.0]
[1732204425158,13.0929,248.82,248.66,20.0]
[1732204425159,0.3746,248.69,248.66,20.0]
[1732204425364,0.3746,248.69,248.68,30.04813666]
[1732204425565,0.5,248.75,248.68,30.04813666]
[1732204425566,0.5,248.72,248.68,30.04813666]
[1732204425765,0.3746,248.75,248.68,30.04813666]
[1732204425956,0.5,248.76,248.71,30.04813666]
[1732204426266,0.3746,248.75,248.71,30.04813666]
[1732204426450,0.5,248.76,248.71,30.04813666]
[1732204426656,0.5,248.78,248.75,30.04813666]
[1732204426856,0.3746,248.73,248.65,20.60281081]
[1732204427051,0.3746,248.79,248.72,30.04813666]
[1732204427251,0.3746,248.79,248.78,30.04813666]
[1732204427875,0.3746,248.83,248.79,20.0]
[1732204428175,0.3746,248.79,248.65,20.0]
[1732204428359,0.3746,248.77,248.76,30.04813666]
[1732204428553,0.8746,248.77,248.76,30.04813666]
[1732204428979,0.5,248.88,248.74,30.04813666]
[1732204428980,0.3746,248.75,248.74,30.04813666]
[1732204429668,0.5,248.71,248.7,30.04813666]
[1732204429870,0.3746,248.69,248.68,30.04813666]
[1732204430077,0.3746,248.68,248.64,30.04813666]
[1732204430851,0.3746,248.68,248.67,30.04813666]
[1732204431155,0.5,248.69,248.67,30.04813666]
[1732204431377,30.04813666,248.77,248.57,2.90158347]
[1732204431378,0.3746,248.65,248.57,2.90158347]
[1732204431580,30.04813666,248.77,248.58,0.60299952]
[1732204431581,0.3746,248.63,248.58,0.60299952]
[1732204432081,0.3746,248.6,248.52,33.00128122]
[1732204432280,0.5,248.65,248.54,30.04813666]
[1732204432281,0.3746,248.55,248.54,30.04813666]
[1732204432853,0.3746,248.55,248.4,43.22223666]
[1732204432854,0.3746,248.51,248.5,30.04813666]
[1732204433081,0.3746,248.46,248.4,30.04813666]
[1732204433254,0.3746,248.46,248.45,30.04813666]
[1732204435073,0.8746,248.48,248.43,30.04813666]
[1732204435258,0.3746,248.44,248.43,20.0]
[1732204435579,0.3746,248.45,248.44,20.0]
[1732204435776,0.3746,248.45,248.44,50.04813666]
[1732204435982,0.3746,248.48,248.44,50.04813666]
[1732204436173,0.3746,248.45,248.44,50.04813666]
[1732204437182,0.3746,248.47,248.44,50.04813666]
[1732204437386,0.5,248.47,248.46,30.04813666]
[1732204437565,0.8746,248.47,248.46,30.04813666]
[1732204437766,0.5,248.45,248.44,30.04813666]
[1732204438057,0.3746,248.43,248.42,30.04813666]
[1732204438259,0.8746,248.43,248.4,30.04813666]
[1732204438467,0.3746,248.41,248.4,30.04813666]
[1732204439385,0.3746,248.43,248.4,30.04813666]
[1732204439568,0.3746,248.43,248.42,30.04813666]
[1732204440278,0.3746,248.49,248.43,20.0]
[1732204440484,0.3746,248.49,248.47,30.04813666]
[1732204440787,0.5,248.5,248.47,30.04813666]
[1732204441079,0.3746,248.46,248.41,20.0]